Cogmind - Beta 14 @@@ ROGUE MODE // 2024.11.14 @ 14:28:55 Player: Fangrelle Result: Core destroyed Performance ------------- Evolutions (1) 500 Regions Visited (3) 600 Robots Destroyed (66) 330 Value Destroyed (1691) 1691 Prototype IDs (2) 40 Alien Tech Used (0) 0 Bonus (48) 48 TOTAL SCORE: 3209 Bonus ------- High Alert Combat Kills 48 Cogmind --------- Core Integrity 0/400 Matter 13/300 Energy 255/265 System Corruption 12% Temperature Critical (598) Movement Rolling (125) Ox3 Location -9/Materials Parts ------- > --- POWER (1) -------- Reinforced Ion Engine > --- PROPULSION (2) --- Wheel Wheel > --- UTILITY (2) ------ High-capacity Storage Unit Hardened Light Armor Plating > --- WEAPON (4) ------- Improved EM Shotgun Spread Laser Heavy Assault Rifle Rocket Launcher > --- INVENTORY (20) --- Flexi-carbon Leg Flexi-carbon Leg Wheel Improved Heat Sink High-capacity Matter Pod (0) Transport Network Coupler Salvage Targeting Computer Propulsion Shielding Utility Shielding Hacking Suite Tractor Beam Particle Gun Field Laser Bore Cannon Datajack Mining Laser Heavy Explosive Trap Heavy Explosive Trap Peak State ------------ > --- POWER ------------ Reinforced Ion Engine > --- PROPULSION ------- Wheel Wheel > --- UTILITY ---------- High-capacity Storage Unit Hardened Light Armor Plating > --- WEAPON ----------- Improved EM Shotgun Particle Gun Spread Laser Heavy Assault Rifle > --- INVENTORY -------- Flexi-carbon Leg Flexi-carbon Leg Wheel Improved Heat Sink High-capacity Matter Pod Transport Network Coupler Salvage Targeting Computer Propulsion Shielding Utility Shielding Hacking Suite Tractor Beam Field Laser Bore Cannon Rocket Launcher Datajack Mining Laser Heavy Explosive Trap Heavy Explosive Trap Heavy Explosive Trap Heavy Explosive Trap [Rating: 20] Favorites ----------- Power Ion Engine Engine Ion Engine Propulsion Light Treads Treads Light Treads Leg Aluminum Leg Wheel Wheel Utility High-capacity Storage Unit Device Terrain Scanner Storage High-capacity Storage Unit Processor Targeting Computer Protection Hardened Light Armor Plating Weapon Assault Rifle Energy Gun Beam Rifle Ballistic Gun Assault Rifle Ballistic Cannon Light Cannon Launcher Rocket Launcher Build | -11 -10 -10 -9 ------- Run | Yrd Mat Min Mat Slots Evolved 2 | . . . 2 Power . | . . . . Propulsion . | . . . . Utility . | . . . . Weapon 2 | . . . 2 Parts Attached 42 | . 17 4 21 Power 8 | . 3 . 5 Engine 8 | . 3 . 5 Core . | . . . . Reactor . | . . . . Propulsion 14 | . 8 2 4 Treads 8 | . 6 . 2 Leg . | . . . . Wheel 6 | . 2 2 2 Hover . | . . . . Flight . | . . . . Utility 7 | . 3 1 3 Device 2 | . 2 . . Storage 3 | . 1 1 1 Processor 1 | . . . 1 Hackware . | . . . . Protection 1 | . . . 1 Artifact . | . . . . Weapon 13 | . 3 1 9 Energy Gun 6 | . 1 . 5 Energy Cannon . | . . . . Ballistic Gun 5 | . 2 . 3 Ballistic Cannon 1 | . . 1 . Launcher 1 | . . . 1 Special Weapon . | . . . . Impact Weapon . | . . . . Slashing Weapon . | . . . . Piercing Weapon . | . . . . Special Melee Weapon . | . . . . Unidentified Prototypes 1 | . . . 1 Parts Lost 14 | . 1 2 11 Power 2 | . . . 2 Propulsion 6 | . . 2 4 Utility 1 | . . . 1 Weapon 5 | . 1 . 4 Highest Loss Streak 3 | . 1 2 3 To Critical Strikes . | . . . . Average Slot Usage (%) 86 | . 97 99 73 Engine 11 | . 13 14 9 Treads 16 | . 27 14 10 Wheel 6 | . . 13 8 Device 6 | . 12 14 . Storage 12 | . 14 14 11 Processor 4 | . . . 9 Energy Gun 6 | . 6 . 9 Ballistic Gun 16 | . 19 21 12 Ballistic Cannon 2 | . . 7 2 Peak Build Rating 20 | . 8 10 20 Average Rating 10 | . 7 8 13 On Entrance 7 | 6 6 8 10 Naked Turns . | . . . . Heaviest Build 67 | 12 34 51 67 Greatest Support 43 | 20 40 40 43 Greatest Overweight (x) 15 | . 7 2 15 Average Overweight (x) 1 | . . . 1 Largest Inventory Capacity 20 | . 15 20 20 Average Capacity 17 | . 14 16 20 Most Carried 20 | . 12 19 20 Average Carried 14 | . 8 14 18 Final Capacity 20 | 8 15 20 20 Final Carried 19 | 6 12 19 18 Class Distribution -------------------- 78% | Mutant 8% | Gunner 6% | Scavenger-Mutant 3% | Scavenger-Gunner Dominant Class ---------------- Mutant | -10/Materials Mutant | -10/Mines Mutant | -9/Materials Resources | -11 -10 -10 -9 ----------- Run | Yrd Mat Min Mat Matter Collected 1310 | 189 382 181 558 Remotely . | . . . . Salvage Created 2086 | . 568 202 1316 Parts 131 | . 41 22 68 Haulers Intercepted 2 | . 1 . 1 Recyclers Shooed 2 | . . . 2 Parts Field Recycled . | . . . . Retrieved Matter . | . . . . Parts Self-Destructed . | . . . . Prevented . | . . . . Kills | -11 -10 -10 -9 ------- Run | Yrd Mat Min Mat Combat Hostiles Destroyed 53 | . 12 12 29 Guns 40 | . 12 8 20 Cannons 8 | . . 4 4 AOE 5 | . . . 5 Classes Destroyed 10 | . 6 . 4 Builder 2 | . . . 2 Hauler 2 | . 1 . 1 Recycler 3 | . 1 . 2 Mechanic 1 | . . . 1 Operator 2 | . 1 . 1 Watcher 3 | . 1 . 2 Swarmer 16 | . 3 10 3 Grunt 30 | . 9 2 19 Brawler 2 | . . . 2 Sentry 5 | . . . 5 Best Kill Streak 7 | . 4 3 7 Combat Bots Only 6 | . 4 3 6 Max Kills in Single Turn 3 | . 1 1 3 Gunslinging . | . . . . Exploded 2 | . . . 2 Melee . | . . . . Uniques/NPCs Destroyed . | . . . . Combat | -11 -10 -10 -9 -------- Run | Yrd Mat Min Mat Hostile Shots Fired 270 | . 55 41 174 Missed 86 | . 22 9 55 Damage Taken 2424 | . 390 360 1674 Core 564 | . 59 74 431 Absorbed by Shields . | . . . . Core Remaining (%) 73 | 100 . 46 . Volleys Fired 198 | . 55 27 116 Largest 4 | . 2 2 4 Hottest 198 | . 60 55 198 Shots Fired 363 | . 103 54 206 Gun 307 | . 103 38 166 Cannon 54 | . . 16 38 Launcher 2 | . . . 2 Special . | . . . . Kinetic 279 | . 85 54 140 Thermal 56 | . . . 56 Explosive 2 | . . . 2 Electromagnetic 26 | . 18 . 8 Robot Hit Streak 12 | . 9 7 12 Robot Miss Streak 6 | . 6 3 5 Penetration Max . | . . . . Secondary Targets 8 | . 3 2 3 Max Gunslinging Chain 1 | . 1 1 1 Shots Hit Robots 222 | . 59 32 131 Core Hits 106 | . 30 14 62 Critical Kills . | . . . . Critical Parts Destroyed 1 | . . 1 . Critical Strikes 4 | . . 1 3 Burn 2 | . . . 2 Destroy 1 | . . 1 . Blast 1 | . . . 1 Melee Attacks . | . . . . Impact . | . . . . Slashing . | . . . . Piercing . | . . . . Sneak Attacks . | . . . . Combat Hostiles . | . . . . Follow-up Attacks . | . . . . Damage Inflicted 3934 | . 862 442 2630 Guns 2631 | . 781 265 1585 Cannons 656 | . . 177 479 Explosions 645 | . 79 . 566 Melee . | . . . . Ramming 2 | . 2 . . Kinetic 2567 | . 606 442 1519 Thermal 646 | . 79 . 567 Explosive 423 | . . . 423 Electromagnetic 296 | . 175 . 121 Impact . | . . . . Slashing . | . . . . Piercing . | . . . . Highest Corruption 12 | . 1 1 12 Average Corruption 6 | . 1 1 11 Corruption Purged . | . . . . Corruption Blocked . | . . . . Effects 70 | . 7 7 56 Message Errors 17 | . 2 1 14 Matter Fused 17 | . 2 5 10 Heat Flow Errors 2 | . . . 2 Energy Discharges 11 | . . 1 10 Parts Fused 2 | . . . 2 Data Loss (minor) 7 | . 2 . 5 Data Loss (major) 3 | . 1 . 2 Misfires 4 | . . . 4 Alerts 1 | . . . 1 Misdirections 1 | . . . 1 Weapon Failures 5 | . . . 5 Overload Shots . | . . . . Overflow Damage 33 | . . . 33 Projectiles 10 | . . . 10 Explosions 23 | . . . 23 Melee . | . . . . Knockbacks 7 | . . 2 5 Impact . | . . . . Kinetic 7 | . . 2 5 Secondary . | . . . . Self-Inflicted Damage 195 | . 40 . 155 Shots 4 | . 1 . 3 Rammed 2 | . 2 . . Targets Rammed 2 | . 2 . . Kicked . | . . . . Crushed . | . . . . Highest Temperature 638 | . 30 52 638 Average Temperature 83 | . 16 24 100 Received Heat Transfer 906 | . 156 162 588 Effects 5 | . . . 5 Shutdowns 1 | . . . 1 Interference 1 | . . . 1 Damage (major) 2 | . . . 2 Damage (core) 1 | . . . 1 Siege Activations . | . . . . Robots Corrupted . | . . . . Combat Hostiles . | . . . . Parts Fried 1 | . . . 1 Impact Corruptions . | . . . . Robots Melted . | . . . . Combat Hostiles . | . . . . Parts Melted 1 | . 1 . . Heat Transferred 1365 | . 100 . 1265 Parts Sabotaged . | . . . . Parts Stolen . | . . . . Parts Stripped . | . . . . Power Chain Reactions 4 | . 2 . 2 Alert | -11 -10 -10 -9 ------- Run | Yrd Mat Min Mat Peak Influence 532 | . 251 216 532 Initial 76 | . . 36 76 Average 172 | . 108 133 236 Maximum Alert Level 2 | . 1 1 2 Low Security (%) 64 | . 93 93 30 Level 1 33 | . 6 6 63 Level 2 2 | . . . 5 Level 3 . | . . . . Level 4 . | . . . . Level 5 . | . . . . High Security . | . . . . Max Security . | . . . . Squads Dispatched 10 | . 4 . 6 Investigation 7 | . 3 . 4 Extermination . | . . . . Reinforcement 3 | . 1 . 2 Assault . | . . . . Garrison . | . . . . Intercept . | . . . . Searches Triggered . | . . . . Construction Impeded 1 | . . . 1 Haulers Reinforced . | . . . . Active Scanning Responses . | . . . . Cargo Convoy Interrupts . | . . . . Stealth | -11 -10 -10 -9 --------- Run | Yrd Mat Min Mat Distress Signals 3 | . . . 3 Communications Jammed . | . . . . Distress Signals . | . . . . Times Spotted 83 | . 24 19 40 Peak Tracking Total 8 | . 5 8 6 Tactical Retreats 5 | . 1 4 . Traps | -11 -10 -10 -9 ------- Run | Yrd Mat Min Mat Traps Triggered 7 | . 5 . 2 Indirectly . | . . . . Trap Hack Attempts . | . . . . Triggered . | . . . . Disarmed . | . . . . Reprogrammed . | . . . . Reused . | . . . . Traps Extracted . | . . . . Installed 3 | . . . 3 Triggered . | . . . . Most Traps Carried 5 | . . 5 5 Machines | -11 -10 -10 -9 ---------- Run | Yrd Mat Min Mat Machines Disabled 5 | . . 1 4 Max in Single Turn 3 | . . 1 3 Machines Repaired . | . . . . Machines Dismantled . | . . . . Machines Sabotaged . | . . . . Overloaded Fab Kills . | . . . . Hacking | -11 -10 -10 -9 --------- Run | Yrd Mat Min Mat Machines Accessed 19 | . 9 . 10 Terminals 13 | . 7 . 6 Fabricators . | . . . . Repair Stations 1 | . . . 1 Recycling Units 4 | . 2 . 2 Scanalyzers 1 | . . . 1 Garrison Access . | . . . . Total Hacks 65 | . 31 . 34 Successful 38 | . 17 . 21 Failed 27 | . 14 . 13 Catastrophic . | . . . . Database Lockouts . | . . . . Manual 48 | . 26 . 22 Terminals 44 | . 25 . 19 Fabricators . | . . . . Repair Stations 4 | . . . 4 Recycling Units 16 | . 6 . 10 Scanalyzers 1 | . . . 1 Garrison Access . | . . . . Terminal Hacks . | . . . . Fabricator Hacks . | . . . . Repair Station Hacks 2 | . . . 2 Scan Component 2 | . . . 2 Recycling Unit Hacks 7 | . 3 . 4 Report Inventory 5 | . 2 . 3 Retrieve Components 2 | . 1 . 1 Scanalyzer . | . . . . Garrison Access Hacks . | . . . . Unauthorized Hacks 29 | . 14 . 15 Terminals 25 | . 13 . 12 Assimilate 10 | . 5 . 5 Botnet 11 | . 6 . 5 Operators 3 | . 2 . 1 Skim 1 | . . . 1 Fabricators . | . . . . Repair Stations . | . . . . Recycling Units 3 | . 1 . 2 Tunnel 3 | . 1 . 2 Scanalyzers 1 | . . . 1 Extract 1 | . . . 1 Garrison Access . | . . . . Data Cores Recovered . | . . . . Used . | . . . . Hacking Detections 14 | . 7 . 7 Full Trace Events 2 | . 1 . 1 Feedback Events 1 | . 1 . . Corruption 1 | . 1 . . Feedback Blocked . | . . . . Robot Schematics Acquired . | . . . . Robots Built . | . . . . Authchips . | . . . . Time . | . . . . Total Robot Build Rating . | . . . . Part Schematics Acquired 5 | . . . 5 Parts Built . | . . . . Authchips . | . . . . Time . | . . . . Total Part Build Rating . | . . . . Parts Repaired . | . . . . Time . | . . . . Parts Recycled . | . . . . Recycled Matter . | . . . . Retrieved Matter . | . . . . Retrieved Components 20 | . 10 . 10 Parts Scanalyzed . | . . . . Part Schematics Acquired . | . . . . Parts Damaged . | . . . . Bothacking | -11 -10 -10 -9 ------------ Run | Yrd Mat Min Mat Used RIF Installer . | . . . . Robots Hacked . | . . . . Non-combat . | . . . . Combat . | . . . . Robot Hacks Applied . | . . . . Relay Couplers Released . | . . . . Fabnet Peak Effective % . | . . . . Robots Rewired . | . . . . Allies Hacked . | . . . . Hacks Repelled . | . . . . Allies | -11 -10 -10 -9 -------- Run | Yrd Mat Min Mat Total Allies . | . . . . Largest Group . | . . . . Highest-Rated Group . | . . . . Highest-Rated Ally . | . . . . Total Orders . | . . . . Ally Attacks . | . . . . Total Damage . | . . . . Kills . | . . . . Allies Corrupted . | . . . . Allies Melted . | . . . . Intel | -11 -10 -10 -9 ------- Run | Yrd Mat Min Mat Robot Analysis Total . | . . . . Derelict Logs Recovered 2 | . . 2 . Drone Launches . | . . . . Drone Recoveries . | . . . . Exploration | -11 -10 -10 -9 ------------- Run | Yrd Mat Min Mat Turns Passed 3592 | . 1248 678 1666 Spaces Moved 1790 | 1 631 459 699 Core 5 | . 1 . 4 Treads 1140 | . 630 185 325 Legs 1 | 1 . . . Wheels 644 | . . 274 370 Hover . | . . . . Flight . | . . . . Fastest Speed 95 | 120 160 95 110 Average Speed 162 | 120 160 126 187 Slowest Speed 800 | 120 400 160 800 Overloaded Moves . | . . . . Propulsion Burnouts . | . . . . Robots Hopped . | . . . . Cave-ins Triggered . | . . . . Exploration Rate (%) 62 | 2 98 86 62 Regions Visited 3 Branch Regions 1 Pre-discovered Areas 3 | . 1 . 2 Known Exits Taken . | . . . . Unknown Exits Taken 3 | 1 1 1 . Scrap Searched 1 | . . 1 . Spaces Dug . | . . . . Terrain Destroyed 66 | . 15 . 51 Melee . | . . . . Projectile . | . . . . AOE 66 | . 15 . 51 Terrain Rammed . | . . . . Walls Destroyed . | . . . . Machines Disabled . | . . . . Actions | -11 -10 -10 -9 --------- Run | Yrd Mat Min Mat Total 2128 | . 756 500 872 Wait 37 | . 37 . . Move 1787 | . 630 458 699 Hop . | . . . . Pick Up 36 | . 10 10 16 Fast Attach 19 | . 9 . 10 Attach 11 | . 3 2 6 Detach . | . . . . Swap 12 | . 5 2 5 Drop 23 | . 5 1 17 Fire 198 | . 55 27 116 Melee . | . . . . Ram . | . . . . Kick . | . . . . Crush 2 | . 2 . . Escape Stasis . | . . . . Rewire . | . . . . Trap 3 | . . . 3 Miscellaneous . | . . . . Route ------- -11/Scrapyard -10/Materials (discovered 5 exits: *Mat x3 / [*Min x2]) -10/Mines -9/Materials (discovered 2 exits: [*Mat] / [*Min]) History --------- Turn | Location | Event 1 | -11/Scrapyard | Discovered new exit (range 0) 1 | -11/Scrapyard | Entered Materials 98 | -10/Materials | Discovered new exit (range 16) 312 | -10/Materials | Build established: Mutant 334 | -10/Materials | Discovered new exit (range 8) 733 | -10/Materials | Discovered new exit (range 3) 857 | -10/Materials | Discovered new exit (range 16) 922 | -10/Materials | Discovered new exit (range 16) 1249 | -10/Materials | Entered Mines 1326 | -10/Mines | Assembled infested the area 1331 | -10/Mines | Assisted by a Guerilla fighting off Assembled 1513 | -10/Mines | Received a Rocket Launcher from a helpful Derelict 1548 | -10/Mines | Learned Materials garrison access intel 1606 | -10/Mines | Core integrity fell below 50% 1688 | -10/Mines | Discovered new exit (range 9) 1735 | -10/Mines | Learned Materials machine intel 1770 | -10/Mines | Found a hidden stash of uninstalled traps 1927 | -10/Mines | Entered Materials 1927 | -9/Materials | Evolved 2 slots: Weapon x2 1928 | -9/Materials | Loaded intel: 68 machine locations 2248 | -9/Materials | System corruption reached 10% 2278 | -9/Materials | Lost 3 parts (1p1n1w) 2280 | -9/Materials | Core integrity fell below 50% 2852 | -9/Materials | Discovered new exit (range 10) 3282 | -9/Materials | Core integrity fell below 20% 3383 | -9/Materials | Discovered new exit (range 5) 3594 | -9/Materials | Core destroyed Last Messages --------------- 03579_ G-34 Mercenary destroyed. 03579_ Switching to secondary target: G-34 Mercenary. 03583_ Processing Tank disabled. 03586_ U-05 Engineer lays Concrete. 03586_ System corrupted: Particle Gun failed to cycle. 03586_ Chain reaction triggered in Ion Engine. 03586_ U-05 Engineer destroyed. 03586_ G-34 Mercenary destroyed. 03586_ Switching to secondary target: G-34 Mercenary. 03587_ U-05 Engineer builds a Wall. 03588_ Overheating: Spread Laser damaged (-53). 03588_ U-05 Engineer lays Concrete. 03590_ Power failure, Rnf. Ion Engine shutdown. 03590_ U-05 Engineer lays Concrete. 03591_ Destroyed Welding Torch. 03591_ G-34 Mercenary destroyed. 03592_ ALERT: Construction progress impeded, dispatching reinforcements to local area. 03593_ Overheating: Hcp. Storage Unit damaged (-124). 03593_ G-34 Mercenary destroyed. 03594_ Overheating: Core damaged (-48). Map ----- +----------------------------------------------------+ | ??????????????????????????????????????????? | | ??????????????????????????????????????????? | | ??????????????????????????????????????????? | | ??????????????????????????????????????????? | | ??????????????????"""????#####???"""""????? | | ??????????????????"""???#!!!!##??"""""????? | | ??????????????????"""???! !#? """""????? | | ???????????????????????? # """""????? | | ???????????????????????? # """""????? | | ?????????????????####### ?"""""????? | | ?????????????????# # ??"""""????? | | ?????????????????? # ????????????? | | ????????????#####? # ?????????????? | | ????????????#** #?? ?# #??????????????? | | ????????????#** #?? ?# #??????????????? | | ????????????#[[ ####+### #???"""????????? | | ????????????#[ = ^ ###?"""????????? | | ????????????#]] *%= +?"""????????? | | ????????????#]] * a""###??????????? | | ????????????#### !% Y"#???"""??????# | | ??????????????? %%[ ""#???"""??????# | | ???????????????# =%u #???"""??????# | | ???????????????# %= #????????????# | | ???????????????# % ############## | | ???????????????# u a | | ???????????????# @ | | ???????????????# ! | | ???????????????## ####+############### | | ????????????????# ### #??????????# | | ??????????####### #?# """ #???######## | | ???????#### # ## #?#% """ ##### [ # | | ???????# # ## #?#* """ ## + # | | ??????## # #?#* ## ## """" # | | ??????# # #?# ## ## """" # | | ??????## # #?######+## ## """" # | | ??????# # #?###### ## # | | ??????# %+ ###"""## ######+## | | ??????# # = % | | ??????## # ###"""##### | | ???????# # ########### | | ???????# # # T # ####+#### | | ???????### # #### # # #= #? | | ?????????# """ # = # # #? | | ?????????# """ + # """ ! ! +% # #? | | ?????????# """ # # """ * # # "T" #? | | ?????????# # # """ # # """ #? | | ?????????# ! # # %# # #? | | ?????????# # # % + ######+#? | | ??????########### ### #########+#????# #? | | ??????# # #?##???????????????# #? | +----------------------------------------------------+ Best States ------------- Heat Dissipation 28 Energy Generation 12 Energy Capacity 265 Matter Stores 300 Matter Capacity 300 Sight Range 16 Terrain Scan Range 14 Terrain Scan Density 10 Armor Coverage 150 Evasion (%) 41 Targeting Accuracy 5 Recoil Reduction 2 Item Schematics ----------------- Salvage Targeting Computer | -9/Materials | Extracted Flail | -9/Materials | Extracted Adv. Beam Cannon | -9/Materials | Extracted Lgt. Ion Engine | -9/Materials | Extracted Huge Storage Unit | -9/Materials | Extracted Robot Schematics ------------------ None Fabricated ------------ Nothing Alien Tech Used ----------------- None Achievements -------------- None Challenges ------------ None Game ------ Seed ExoskeletonRecyclingShovel Manual? 0 Play Time 00:23:49 Cumulative 73.6 hours Start 2024.11.14 @ 14:06:26 End 2024.11.14 @ 14:28:55 Sessions 1 Manual Loads 0 Difficulty Rogue Special Mode None Game No. 126 Rogue 126 Adventurer 0 Explorer 0 Win Type - Total 0 Types 0/0/0/0/0/0/0/0/0 Lore% 41 Gallery% 35 Achievement% 34 Wizard Run 0 Options --------- Layout 0 ASCII 0 Keyboard 0 Movement Mouse Keybinds 0 Fullscreen 1 Font 24/Smallcaps Map View 91x25 Zoom Use 89% Tactical HUD 1 Map Filters NONE Filters NONE Steam 1 RUN: dc71af58-3270-4da2-8a27-cecc0cdcf8e3